bitfinex/quotes_ETHUSD_20241104
["timestamp","ask_amount","ask_price","bid_price","bid_amount"]
[1730723481965,4.03536,2478.1,2477.9,0.7614]
[1730723482194,4.03505,2478.3,2477.9,0.7614]
[1730723482392,4.03519,2478.2,2477.9,0.7614]
[1730723482801,4.03521,2478.2,2477.9,0.7614]
[1730723482963,4.03522,2478.2,2477.9,0.7614]
[1730723483155,4.03522,2478.2,2477.8,0.55]
[1730723483396,4.03551,2478.0,2477.8,0.55]
[1730723483599,4.03567,2477.9,2477.8,0.55]
[1730723483899,4.03551,2478.0,2477.5,0.7602]
[1730723483900,0.8216,2478.0,2477.5,0.7602]
[1730723484107,4.03577,2477.9,2477.5,0.7602]
[1730723484603,0.8216,2478.0,2477.5,0.7602]
[1730723484783,4.03602,2477.7,2477.5,0.7602]
[1730723485618,4.03618,2477.6,2477.2,4.86648]
[1730723485815,4.03615,2477.7,2477.3,4.2473161]
[1730723486015,4.03626,2477.6,2477.4,0.2106761]
[1730723486219,4.03615,2477.7,2477.2,4.94720764]
[1730723486385,4.03615,2477.7,2477.3,0.21067457]
[1730723486574,4.03615,2477.7,2477.4,0.21067457]
[1730723486775,4.03615,2477.7,2477.4,0.55]
[1730723486974,4.03614,2477.7,2477.3,3.55]
[1730723487273,0.8216,2478.0,2477.4,0.21068953]
[1730723487274,4.03619,2477.6,2477.4,0.21068953]
[1730723487479,4.03619,2477.6,2477.3,3.55]
[1730723487826,4.03619,2477.6,2477.4,0.21075659]
[1730723488001,4.03603,2477.7,2477.3,7.58663]
[1730723488204,4.03603,2477.7,2477.4,0.21075467]
[1730723488408,4.03603,2477.7,2477.3,7.58663]
[1730723488580,4.03619,2477.6,2477.4,0.21078721]
[1730723488783,4.03619,2477.6,2477.3,0.55]
[1730723489176,4.03619,2477.6,2477.4,0.21084758]
[1730723489376,4.03619,2477.6,2477.3,0.55]
[1730723489816,4.03616,2477.6,2477.3,0.55]
[1730723490229,4.03634,2477.5,2477.4,0.21086062]
[1730723490593,4.03601,2477.7,2477.4,0.21086062]
[1730723490774,4.0362,2477.6,2477.3,0.55]
[1730723490978,4.0362,2477.6,2477.4,0.21086605]
[1730723491234,4.0362,2477.6,2477.3,0.55]
[1730723491520,4.03601,2477.7,2477.4,0.21088039]
[1730723491724,4.85716,2478.0,2477.3,0.55]
[1730723491725,4.03583,2477.9,2477.3,0.55]
[1730723491932,4.81419,2478.3,2477.9,4.58565]
[1730723492225,4.03509,2478.3,2477.9,4.58565]
[1730723492376,3.31294815,2478.6,2477.9,0.55]
[1730723492377,4.03519,2478.2,2477.9,0.55]
[1730723492580,3.31294815,2478.6,2477.9,4.58565]
[1730723492581,4.03505,2478.3,2477.9,4.58565]
[1730723493023,8.0702,2478.3,2477.9,0.55]
[1730723493692,1.20071915,2478.6,2477.9,0.55]
[1730723493877,4.03492,2478.4,2477.9,0.55]
[1730723494078,4.03525,2478.2,2477.9,0.55]
[1730723495106,8.07019,2478.3,2477.9,0.55]
[1730723495304,4.03504,2478.3,2477.9,0.55]
[1730723495704,4.03488,2478.4,2477.9,9.865369]
[1730723495894,4.03498,2478.4,2478.1,0.55]
[1730723496301,4.03482,2478.5,2478.1,4.58533]
[1730723496510,4.45626915,2478.6,2478.2,4.03518]
[1730723496695,4.45626915,2478.6,2478.2,0.8028]
[1730723496897,4.45626915,2478.6,2478.2,4.83792]
[1730723498231,4.0347,2478.5,2478.2,0.8028]
[1730723498793,4.45616915,2478.6,2478.2,0.8028]
[1730723499033,4.03472,2478.5,2478.2,0.8028]
[1730723499201,4.03487,2478.4,2478.2,0.8028]
[1730723499720,4.03473,2478.5,2478.2,0.8028]
[1730723501287,8.49083915,2478.6,2478.2,0.8028]
[1730723501492,8.49083915,2478.6,2478.3,4.58501]
[1730723501493,0.42161915,2478.6,2478.3,4.58501]
[1730723501692,0.42161915,2478.6,2478.3,0.55]
[1730723501938,0.42161915,2478.6,2478.3,4.585]
[1730723503146,0.42161915,2478.6,2478.5,5.38489]
[1730723503649,0.42161915,2478.6,2478.5,4.3502]
[1730723503949,4.03448,2478.7,2478.5,0.55]
[1730723504125,0.0610947,2479.0,2478.8,0.55]
[1730723504323,0.0610947,2479.0,2478.8,4.6647605]
[1730723505610,0.0610947,2479.0,2478.9,8.41364]
[1730723507006,0.0610947,2479.0,2478.9,8.42364]
[1730723507204,0.0610947,2479.0,2478.9,9.232829]
[1730723507735,0.0610947,2479.0,2478.9,10.2003898]
[1730723508094,0.0610947,2479.0,2478.9,9.77969181]
[1730723509114,0.0610947,2479.0,2478.9,9.43315323]
[1730723509908,0.0610947,2479.0,2478.9,8.88315323]
[1730723510111,0.0610947,2479.0,2478.9,0.8296]
[1730723510349,0.0610947,2479.0,2478.9,4.86364]
[1730723510714,0.0610947,2479.0,2478.9,5.07334639]
[1730723511394,0.0610947,2479.0,2478.9,8.62334639]
[1730723514027,0.0610947,2479.0,2478.9,8.41364]
[1730723514230,0.0610947,2479.0,2478.9,9.86011577]
[1730723514425,0.0610947,2479.0,2478.9,2.82607577]
[1730723514653,0.0610947,2479.0,2478.9,1.3796]
[1730723514831,0.0610947,2479.0,2478.9,5.41364]
[1730723515933,0.0610947,2479.0,2478.9,8.41364]
[1730723518076,0.0610947,2479.0,2478.8,0.55]
[1730723518270,0.0610947,2479.0,2478.9,3.0]
[1730723518448,0.0610947,2479.0,2478.9,3.55]
[1730723519087,0.0610947,2479.0,2478.6,3.0]
[1730723519284,0.0610947,2479.0,2478.7,3.29016962]
[1730723519488,0.0610947,2479.0,2478.7,3.08067812]
[1730723519844,0.0610947,2479.0,2478.7,3.0]
[1730723520184,0.0610947,2479.0,2478.9,4.85454]
[1730723520483,0.0610947,2479.0,2478.9,5.61415204]
[1730723520680,0.0610947,2479.0,2478.9,6.61251315]
[1730723520897,0.0610947,2479.0,2478.9,9.61251315]
[1730723521418,0.0610947,2480.3,2479.8,0.55]
[1730723521419,0.7621,2480.2,2479.8,0.55]
[1730723521597,0.7621,2480.2,2479.8,0.63064435]
[1730723521598,4.79417,2480.2,2479.8,0.63064435]
[1730723521879,4.03211,2480.1,2479.8,0.55]
[1730723522383,4.79417,2480.2,2479.8,0.55]
[1730723522384,4.79404,2480.2,2479.8,0.55]
[1730723523067,8.82608,2480.2,2479.8,0.55]
[1730723523272,4.0321,2480.1,2479.8,0.55]
[1730723523643,4.79404,2480.2,2479.8,0.55]
[1730723524248,8.82606,2480.2,2479.8,0.55]
[1730723524459,4.79404,2480.2,2479.8,0.55]
[1730723524663,8.82609,2480.2,2479.8,0.55]
[1730723524850,4.79404,2480.2,2479.8,0.55]
[1730723525060,4.03211,2480.1,2479.8,0.55]
[1730723525386,4.0928647,2480.3,2479.8,5.09040466]
[1730723525592,4.03194,2480.2,2479.8,1.05798466]
[1730723526374,4.0321,2480.1,2479.8,1.05798466]
[1730723526600,4.0321,2480.1,2479.8,0.55]
[1730723526808,4.03233,2480.0,2479.8,0.55]
[1730723527209,4.0321,2480.1,2479.7,0.55]
[1730723527374,4.03228,2480.0,2479.7,3.55]
[1730723527581,4.03228,2480.0,2479.6,0.55]
[1730723527802,4.0321,2480.1,2479.8,0.55]
[1730723528004,8.06431,2480.1,2479.8,0.55]
[1730723528225,8.06431,2480.1,2479.7,0.55]
[1730723528423,4.03242,2479.9,2479.8,0.20975898]
[1730723528626,4.03258,2479.8,2479.7,0.55]
[1730723528918,4.03193,2480.2,2479.7,0.55]
[1730723528919,4.8485347,2480.3,2479.8,4.58258]
[1730723529106,4.8485347,2480.3,2479.9,1.0683785]
[1730723529430,4.8485347,2480.3,2479.8,4.66322267]
[1730723529431,4.03195,2480.2,2479.8,4.58258]
[1730723529578,4.8485347,2480.3,2479.9,0.20981539]
[1730723529781,8.8804047,2480.3,2480.0,0.20981539]
[1730723530027,4.8485347,2480.3,2479.8,4.58254]
[1730723530323,4.8485347,2480.3,2480.0,0.55]
[1730723530682,4.8485347,2480.3,2479.8,0.55]
[1730723530883,4.03201,2480.2,2479.9,0.20990914]
[1730723531187,4.8485447,2480.3,2480.0,0.20992208]
[1730723531399,4.8485447,2480.3,2480.1,0.21005304]
[1730723531624,4.03193,2480.2,2479.8,4.58256]
[1730723531916,4.0321,2480.1,2480.0,0.55]
[1730723532091,4.0321,2480.1,2480.0,0.21005539]
[1730723534259,4.0321,2480.1,2480.0,0.54674053]
[1730723534706,4.0321,2480.1,2480.0,0.21005539]
[1730723535307,4.03196,2480.2,2480.0,0.21005539]
[1730723535503,4.03196,2480.2,2480.1,0.21005539]
[1730723537839,4.03196,2480.2,2480.1,0.21050905]
[1730723543266,0.88804347,2480.2,2479.7,0.55]
[1730723543469,4.03242,2479.9,2479.8,0.21063377]
[1730723543674,4.03242,2479.9,2479.8,0.54770218]
[1730723543823,4.03225,2480.0,2479.8,0.54768926]
[1730723544185,4.03225,2480.0,2479.9,0.54763043]
[1730723544466,4.03225,2480.0,2479.9,0.54774686]
[1730723544626,0.7644,2480.1,2479.9,0.54779812]
[1730723544831,4.03215,2480.1,2480.0,0.21068395]
[1730723545026,4.03204,2480.2,2480.0,0.21068395]
[1730723545343,4.03204,2480.2,2480.1,0.21068395]
[1730723546169,4.9047347,2480.3,2480.1,0.21068395]
[1730723546461,4.03193,2480.2,2479.9,0.7661]
[1730723546677,4.03193,2480.2,2480.0,0.54812067]
[1730723546981,4.03193,2480.2,2480.1,0.21080801]
[1730723548057,4.03193,2480.2,2480.1,0.21089189]
[1730723549040,4.0928747,2480.3,2480.1,0.21089189]
[1730723549239,4.0928747,2480.3,2479.9,4.79847]
[1730723549240,4.0928747,2480.3,2480.2,0.21089189]
[1730723549984,4.0928747,2480.3,2480.2,0.54891368]
[1730723550277,4.0928747,2480.3,2480.2,0.54888388]
[1730723550430,4.0928747,2480.3,2480.2,0.21089189]
[1730723552950,4.0321,2480.1,2480.0,0.55]
[1730723553205,4.0321,2480.1,2480.0,0.54941524]
[1730723553492,4.0321,2480.1,2480.0,0.2113059]
[1730723553493,4.7951,2480.1,2480.0,0.2113059]
[1730723553692,5.68391647,2480.1,2480.0,0.2113059]
[1730723553850,1.65181647,2480.1,2479.4,3.7748]
[1730723554052,4.03226,2480.0,2479.5,4.66322055]
[1730723554297,4.03226,2480.0,2479.6,4.58253553]
[1730723554591,4.03221,2480.1,2479.8,0.7748]
[1730723554894,4.03217,2480.1,2479.9,0.21139447]
[1730723555101,4.03225,2480.0,2479.8,0.7748]
[1730723555279,4.03225,2480.0,2479.9,0.2113202]
[1730723555852,4.03248,2479.9,2479.6,0.7748]
[1730723556082,4.03226,2480.0,2479.7,0.21134271]
[1730723556286,4.03226,2480.0,2479.8,0.21134271]
[1730723556471,4.03226,2480.0,2479.6,5.991794]
[1730723556699,4.03226,2480.0,2479.7,0.21131061]
[1730723556899,4.03226,2480.0,2479.8,0.21131061]
[1730723557120,4.03242,2479.9,2479.7,0.55]
[1730723557426,4.03242,2479.9,2479.8,0.21131884]
[1730723558119,4.78262,2479.9,2479.8,0.21131884]
[1730723558482,4.78262,2479.9,2479.6,0.55]
[1730723558684,4.78262,2479.9,2479.7,0.21128668]
[1730723558989,4.78262,2479.9,2479.6,0.55]
[1730723559196,4.03261,2479.8,2479.7,0.2112895]
[1730723560314,0.7502,2479.9,2479.4,0.8311]
[1730723560485,4.03277,2479.7,2479.5,0.54925149]
[1730723560683,4.03277,2479.7,2479.6,0.21124292]
[1730723561220,0.7502,2479.9,2479.2,0.7773]
[1730723561221,2.86362494,2479.9,2479.3,0.33806773]
[1730723561421,2.86362494,2479.9,2479.2,0.7773]
[1730723561422,4.03285,2479.7,2479.4,0.21121202]
[1730723561592,4.03298,2479.6,2479.5,0.21121202]
[1730723565389,4.0333,2479.4,2479.3,0.33779574]
[1730723565588,4.0333,2479.4,2479.3,0.21110793]
[1730723565831,4.0333,2479.4,2479.3,0.21111794]
[1730723565832,8.06668,2479.4,2479.3,0.21111794]
[1730723566000,2.1152889,2479.6,2479.3,0.21111794]
[1730723566325,4.03283,2479.7,2479.4,0.21108849]
[1730723566548,4.03283,2479.7,2479.3,4.03331]
[1730723566695,4.03293,2479.6,2479.4,0.21104544]
[1730723567023,4.03293,2479.6,2479.2,4.11418213]
[1730723567188,4.03283,2479.7,2479.3,0.21104308]
[1730723567391,4.03268,2479.8,2479.4,5.04220308]
[1730723567591,4.03282,2479.7,2479.5,0.21104308]
[1730723567792,4.03282,2479.7,2479.4,0.798]
[1730723568021,4.03282,2479.7,2479.5,0.21097773]
[1730723568236,4.03282,2479.7,2479.4,0.798]
[1730723568532,4.03282,2479.7,2479.5,0.21097526]
[1730723568750,4.03282,2479.7,2479.4,0.798]
[1730723569030,4.03282,2479.7,2479.5,0.21097638]
[1730723569326,4.03282,2479.7,2479.4,0.798]
[1730723569529,4.03282,2479.7,2479.5,0.21095695]
[1730723569836,4.03282,2479.7,2479.4,0.798]
[1730723570130,4.03282,2479.7,2479.5,0.21096835]
[1730723570331,4.03282,2479.7,2479.4,0.798]
[1730723570526,4.03282,2479.7,2479.5,0.21096219]
[1730723570730,4.03282,2479.7,2479.4,0.798]
[1730723570894,4.03282,2479.7,2479.5,0.21096285]
[1730723571089,4.03294,2479.6,2479.4,0.798]
[1730723571291,4.79684,2479.6,2479.5,0.21097236]
[1730723571490,4.79684,2479.6,2479.3,0.55]
[1730723571747,4.79684,2479.6,2479.4,0.21098027]
[1730723571949,4.79684,2479.6,2479.3,0.55]
[1730723572186,4.79684,2479.6,2479.4,0.21098071]
[1730723572399,4.79684,2479.6,2479.3,0.55]
[1730723572546,4.79684,2479.6,2479.4,0.21097874]
[1730723572547,4.0331,2479.5,2479.4,0.21097874]
[1730723573051,4.03362,2479.2,2479.0,0.8242]
[1730723573244,4.03362,2479.2,2479.1,0.21100549]
[1730723575289,4.03339,2479.3,2479.1,0.21100549]
[1730723575493,4.03355,2479.2,2478.9,0.55]
[1730723575793,4.03339,2479.3,2479.1,0.7745]
[1730723576002,4.03339,2479.3,2479.2,0.21090373]
[1730723577757,4.03293,2479.6,2479.2,0.21090373]
[1730723577758,8.0663,2479.5,2479.2,0.21090373]
[1730723577961,4.03311,2479.5,2479.2,0.55]
[1730723578693,4.03328,2479.4,2479.0,4.92126272]
[1730723579004,4.03311,2479.5,2479.2,0.55]
[1730723579900,4.03325,2479.4,2479.2,0.55]
[1730723580052,4.0331,2479.5,2479.2,0.55]
[1730723580593,8.06627,2479.5,2479.2,0.55]
[1730723580950,4.03333,2479.4,2479.2,0.55]
[1730723581157,4.03333,2479.4,2478.7,3.0]
[1730723581158,4.03383,2479.1,2478.7,3.0]
[1730723581357,4.03413,2478.9,2478.7,0.7745]
[1730723581622,4.0339,2479.0,2478.8,0.54862072]
[1730723581759,4.0339,2479.0,2478.7,0.7745]
[1730723581760,4.0339,2479.0,2478.9,0.21100032]
[1730723581953,4.03356,2479.2,2478.9,0.21100032]
[1730723582157,4.03356,2479.2,2479.0,0.21096495]
[1730723582402,4.03342,2479.3,2479.1,0.21096495]
[1730723582558,4.03342,2479.3,2478.9,4.54406721]
[1730723582891,8.06695,2479.3,2479.0,0.21097105]
[1730723583075,8.06695,2479.3,2479.1,0.21097105]
[1730723583401,4.034,2479.0,2478.7,1.19655443]
[1730723583601,4.034,2479.0,2478.8,0.54869763]
[1730723583602,4.03411,2478.9,2478.8,0.54869763]
[1730723583763,4.03411,2478.9,2478.8,0.2110299]
[1730723584800,4.03411,2478.9,2478.8,0.21100519]
[1730723586721,4.80581,2478.9,2478.4,0.4220723]
[1730723586922,4.80581,2478.9,2478.3,0.7638]
[1730723586923,4.03469,2478.5,2478.3,0.7638]
[1730723587225,4.03469,2478.5,2478.4,0.54876379]
[1730723587526,4.03455,2478.6,2478.4,0.54876379]
[1730723587681,4.03455,2478.6,2478.5,0.21105534]
[1730723589222,4.03453,2478.6,2478.5,0.21105534]
[1730723589925,4.03481,2478.5,2478.2,0.33759412]
[1730723590088,4.03481,2478.5,2478.3,0.54858358]
[1730723590089,4.03488,2478.4,2478.3,0.54858358]
[1730723590295,4.03488,2478.4,2478.3,0.21098946]
[1730723590541,4.03488,2478.4,2477.9,0.8283]
[1730723590542,4.03518,2478.2,2477.9,0.8283]
[1730723590767,4.03537,2478.1,2478.0,0.2109842]
[1730723591673,8.07082,2478.1,2478.0,0.21091612]
[1730723592042,4.03537,2478.1,2478.0,0.21091612]
[1730723592238,4.03537,2478.1,2477.7,3.788]
[1730723592445,4.03537,2478.1,2477.8,0.21083643]
[1730723592446,4.03552,2478.0,2477.8,0.21083643]
[1730723592661,4.03552,2478.0,2477.9,0.21083643]
[1730723594034,4.03538,2478.1,2477.9,0.21083643]
[1730723594234,4.03538,2478.1,2477.7,9.0521212]
[1730723594553,4.03538,2478.1,2477.8,0.21060838]
[1730723594763,4.03538,2478.1,2477.9,0.21060963]
[1730723595078,4.03538,2478.1,2477.7,9.0521212]
[1730723595381,4.03538,2478.1,2477.8,0.21055643]
[1730723595551,4.03538,2478.1,2477.2,0.01]
[1730723595552,4.03561,2478.0,2477.5,3.0]
[1730723595753,4.03561,2478.0,2477.6,0.76059025]
[1730723595949,4.03567,2477.9,2477.6,0.55]
[1730723596164,4.03553,2478.0,2477.6,4.58615]
[1730723596478,4.84753,2478.0,2477.6,4.58615]
[1730723596886,0.812,2478.0,2477.7,4.03598]
[1730723597180,4.03532,2478.2,2477.9,0.7851]
[1730723597181,4.03522,2478.2,2477.9,0.7851]
[1730723597475,7.86092561,2478.8,2477.3,0.8153]
[1730723597476,4.79596,2477.7,2477.3,0.8153]
[1730723597680,0.7598,2477.7,2477.4,0.21043593]
[1730723597845,4.79588,2477.7,2477.4,0.21043593]
[1730723598058,4.79588,2477.7,2477.3,4.85193]
[1730723598489,0.7598,2477.7,2477.3,5.740801]
[1730723598663,0.7598,2477.7,2477.3,5.82152566]
[1730723599068,0.7598,2477.7,2477.3,5.740801]
[1730723599391,4.0359,2477.8,2477.3,5.82152566]
[1730723599800,4.0359,2477.8,2477.3,5.740801]
[1730723599969,4.03602,2477.7,2477.3,5.740801]
[1730723600598,4.0359,2477.8,2477.4,4.03648]
[1730723600800,4.03553,2478.0,2477.5,4.66696461]
[1730723600969,4.03557,2478.0,2477.7,0.8065]
[1730723601307,4.03542,2478.1,2477.7,0.8065]
[1730723601488,0.783,2478.2,2477.7,4.84248]
[1730723601738,4.03514,2478.3,2477.8,4.58575]
[1730723601993,4.0352,2478.2,2477.8,4.58575]
[1730723602196,4.03514,2478.3,2477.8,4.58575]
[1730723602382,4.03514,2478.3,2477.9,4.03565]
[1730723602585,4.03514,2478.3,2477.9,5.02144557]
[1730723603497,4.03514,2478.3,2477.9,0.98579557]
[1730723604997,4.03537,2478.1,2477.9,0.98579557]
[1730723605512,4.03511,2478.3,2477.9,0.98579557]
[1730723605513,4.03521,2478.2,2477.9,0.98579557]
[1730723605714,4.03535,2478.1,2477.8,0.55]
[1730723605875,4.03502,2478.3,2477.8,4.58576]
[1730723606073,4.03533,2478.2,2477.8,0.55]
[1730723606388,0.783,2478.4,2477.8,0.55]
[1730723606389,4.03537,2478.1,2477.8,0.55]
[1730723607573,0.783,2478.4,2477.8,0.55]
[1730723607768,4.03502,2478.3,2477.8,0.55]
[1730723608013,4.03502,2478.3,2477.9,0.2104504]
[1730723608218,4.03508,2478.3,2477.8,4.66647641]
[1730723608382,4.03508,2478.3,2477.9,0.21050192]
[1730723608568,4.03508,2478.3,2477.8,4.66647641]
[1730723608919,4.03508,2478.3,2477.9,0.21049243]
[1730723609100,4.03508,2478.3,2477.8,5.53665264]
[1730723609265,4.03527,2478.2,2477.9,0.21052632]
[1730723609470,4.03535,2478.1,2477.8,0.55]
[1730723609707,4.03535,2478.1,2477.9,0.21059216]
[1730723609913,4.0352,2478.2,2477.8,0.55]
[1730723610110,4.0352,2478.2,2477.9,0.21059099]
[1730723610315,4.0352,2478.2,2477.8,0.55]
[1730723610488,4.0352,2478.2,2477.9,0.21059607]
[1730723610811,4.03541,2478.1,2477.8,0.55]
[1730723610970,4.03541,2478.1,2477.9,0.21057906]
[1730723611309,4.03541,2478.1,2477.8,0.55]
[1730723611609,4.0352,2478.2,2477.9,0.21058956]
[1730723611812,4.0352,2478.2,2478.0,0.21058956]
[1730723612111,4.0352,2478.2,2477.8,4.5858]
[1730723612300,4.0352,2478.2,2477.9,0.21070645]
[1730723612610,4.0352,2478.2,2478.0,0.21070645]
[1730723612802,4.0352,2478.2,2477.8,4.5858]
[1730723613003,4.0352,2478.2,2477.9,0.21070711]
[1730723613211,4.0352,2478.2,2478.0,0.21070711]
[1730723613405,4.0352,2478.2,2477.8,4.5858]
[1730723613596,4.0352,2478.2,2477.9,0.21081379]
[1730723613796,4.0352,2478.2,2478.0,0.21081379]
[1730723613995,4.0352,2478.2,2477.8,4.5858]
[1730723614198,4.0352,2478.2,2477.9,0.5482405]
[1730723614518,4.0352,2478.2,2477.8,4.5858]
[1730723614519,4.0352,2478.2,2478.0,0.21081067]
[1730723614702,4.0352,2478.2,2477.8,4.5858]
[1730723614909,4.0352,2478.2,2477.9,0.54826843]
[1730723615108,4.0352,2478.2,2478.0,0.21086504]
[1730723615307,4.0352,2478.2,2478.1,0.21086504]
[1730723615620,4.0352,2478.2,2478.1,0.21095137]
[1730723616618,4.03506,2478.3,2478.1,0.21095137]
[1730723616813,4.03506,2478.3,2478.2,0.21095137]
[1730723617014,7.85099561,2478.8,2478.2,0.21095137]
[1730723617015,4.03478,2478.5,2478.2,0.21095137]
[1730723617236,4.03447,2478.7,2478.3,0.21095137]
[1730723617524,8.06898,2478.7,2478.4,0.21095137]
[1730723617724,4.03455,2478.6,2478.5,0.21095137]
[1730723618024,4.03447,2478.7,2478.5,1.00825137]
[1730723618227,4.03449,2478.7,2478.5,0.7973]
[1730723618581,4.03443,2478.7,2478.5,0.7973]
[1730723619614,4.03443,2478.7,2478.6,0.21113196]
[1730723621486,4.03443,2478.7,2478.3,0.8254]
[1730723621487,4.03455,2478.6,2478.4,0.55]
[1730723621692,4.03455,2478.6,2478.5,0.21106933]
[1730723622227,4.03443,2478.7,2478.5,0.21106933]
[1730723622431,4.03443,2478.7,2478.4,0.55]
[1730723622725,8.06888,2478.7,2478.5,0.21102698]
[1730723622936,8.06888,2478.7,2478.4,0.55]
[1730723623103,8.06888,2478.7,2478.5,0.21103393]
[1730723623300,8.06888,2478.7,2478.4,0.55]
[1730723623631,8.06888,2478.7,2478.5,0.21100374]
[1730723623810,8.06888,2478.7,2478.4,0.55]
[1730723624016,4.03469,2478.6,2478.5,0.21100212]
[1730723624421,4.03469,2478.6,2478.4,0.55]
[1730723625094,4.03469,2478.6,2478.5,0.21089549]
[1730723625329,4.03469,2478.6,2478.4,0.55]
[1730723627333,4.03438,2478.7,2478.4,0.55]
[1730723627830,4.03436,2478.8,2478.4,0.55]
[1730723628048,4.0346,2478.6,2478.4,0.55]
[1730723629060,4.03494,2478.4,2478.0,4.03549]
[1730723629274,4.03518,2478.2,2478.1,0.54811258]
[1730723629551,4.03518,2478.2,2478.1,0.21084016]
[1730723629735,4.03546,2478.1,2477.8,0.7946]
[1730723630049,4.03546,2478.1,2477.9,0.21086735]
[1730723630263,4.03546,2478.1,2477.8,0.7946]
[1730723630264,4.03551,2478.0,2477.8,0.7946]
[1730723630416,4.03551,2478.0,2477.9,0.21093132]
[1730723630613,4.84604,2478.3,2477.9,0.21093132]
[1730723630853,4.84604,2478.3,2478.0,0.21093132]
[1730723630854,4.03526,2478.2,2478.0,0.21093132]
[1730723631051,4.03534,2478.1,2477.8,0.7946]
[1730723631217,4.03534,2478.1,2477.9,0.21089057]
[1730723631417,4.03534,2478.1,2478.0,0.21089057]
[1730723632754,4.03534,2478.1,2477.8,0.7946]
[1730723632915,4.03534,2478.1,2477.9,0.76088672]
[1730723633115,4.03534,2478.1,2478.0,0.21088672]
[1730723636454,4.03534,2478.1,2478.0,0.21079774]
[1730723638955,4.03591,2477.8,2477.5,0.7673]
[1730723639118,4.03575,2477.9,2477.6,0.54832902]
[1730723639313,4.03575,2477.9,2477.7,0.21088813]
[1730723639661,4.03575,2477.9,2477.8,0.21088813]
[1730723641262,8.07123,2478.0,2477.8,0.21088813]
[1730723641558,4.0356,2478.0,2477.6,0.55]
[1730723641774,8.07124,2478.0,2477.7,0.54807734]
[1730723641937,4.03528,2478.2,2477.8,0.21079357]
[1730723642278,4.03528,2478.2,2477.9,0.96678621]
[1730723642433,4.03508,2478.3,2478.0,0.21078176]
[1730723642621,4.03508,2478.3,2477.9,0.756]
[1730723643183,4.03508,2478.3,2478.0,0.21076962]
[1730723643371,4.03527,2478.2,2477.9,0.756]
[1730723643658,4.03521,2478.2,2478.0,0.21075737]
[1730723643864,4.03521,2478.2,2477.9,0.756]
[1730723644072,4.03534,2478.1,2478.0,0.2107566]
[1730723644223,4.03534,2478.1,2477.9,0.756]
[1730723644660,4.0352,2478.2,2477.9,0.756]
[1730723644984,4.0352,2478.2,2478.0,0.21078923]
[1730723645123,4.0352,2478.2,2477.9,0.756]
[1730723645438,4.0352,2478.2,2478.0,0.21078906]
[1730723645634,4.0352,2478.2,2477.9,0.756]
[1730723646040,4.0352,2478.2,2478.0,0.21079528]
[1730723646274,4.0352,2478.2,2477.9,0.756]
[1730723646431,4.0352,2478.2,2478.0,0.21075613]
[1730723646632,4.0352,2478.2,2477.9,0.756]
[1730723646826,4.0352,2478.2,2478.0,0.21075194]
[1730723647033,4.0352,2478.2,2477.9,0.756]
[1730723647341,4.0352,2478.2,2478.0,0.21073751]
[1730723647674,4.0352,2478.2,2477.9,0.756]
[1730723647879,4.0352,2478.2,2478.0,0.2107412]
[1730723648030,4.0352,2478.2,2477.9,0.756]
[1730723648232,4.0352,2478.2,2478.0,0.21078037]
[1730723648538,4.0352,2478.2,2477.9,0.756]
[1730723648853,4.03542,2478.1,2477.9,0.756]
[1730723649449,4.03551,2478.0,2477.9,1.306]
[1730723649659,4.03533,2478.2,2477.9,1.306]
[1730723650136,4.03529,2478.2,2478.0,0.2108049]
[1730723650338,4.03529,2478.2,2477.9,1.306]
[1730723650534,4.03529,2478.2,2478.0,0.21083221]
[1730723650745,4.03529,2478.2,2477.9,1.306]
[1730723651077,8.07055,2478.2,2478.0,0.21084125]
[1730723651276,8.07055,2478.2,2477.9,1.306]
[1730723651485,8.07055,2478.2,2478.0,0.21087675]
[1730723651688,8.07055,2478.2,2477.9,1.306]
[1730723651975,4.03534,2478.1,2478.0,0.21087554]
[1730723652188,6.92470729,2478.4,2478.0,0.21087554]
[1730723652484,6.92470729,2478.4,2477.9,1.306]
[1730723652485,4.03519,2478.2,2477.9,1.306]
[1730723652788,8.07052,2478.2,2478.0,0.21090201]
[1730723652943,8.07052,2478.2,2477.9,1.306]
[1730723653144,8.07052,2478.2,2478.0,0.21091089]
[1730723653343,8.07052,2478.2,2478.1,0.21091089]
[1730723653543,8.07052,2478.2,2477.9,1.306]
[1730723653837,5.67852132,2478.6,2478.2,0.8002]
[1730723653838,6.15153516,2478.5,2478.2,0.8002]
[1730723654189,6.15153516,2478.5,2478.0,0.8002]
[1730723654190,4.03534,2478.1,2478.0,0.8002]
[1730723654498,4.03534,2478.1,2478.0,0.21099853]
[1730723655141,4.920045,2478.1,2478.0,0.21099853]
[1730723655372,4.920045,2478.1,2477.7,0.33772975]
[1730723655373,4.03591,2477.8,2477.7,0.33772975]
[1730723655581,4.03591,2477.8,2477.7,0.5488083]
[1730723656038,4.03591,2477.8,2477.7,0.21107855]
[1730723656766,4.03591,2477.8,2477.7,0.54896947]
[1730723660872,4.03591,2477.8,2477.6,0.7591]
[1730723661177,4.03591,2477.8,2477.7,0.54934193]
[1730723662744,4.03571,2477.9,2477.7,0.54934193]
[1730723662940,4.03571,2477.9,2477.8,0.2112777]
[1730723663170,4.03547,2478.1,2477.8,0.2112777]
[1730723663448,4.03547,2478.1,2477.9,0.2112777]
[1730723663643,4.03547,2478.1,2478.0,0.2112777]
[1730723664590,4.03569,2477.9,2477.7,0.55]
[1730723664748,4.03555,2478.0,2477.8,0.3380322]
[1730723664950,4.03555,2478.0,2477.7,0.55]
[1730723664951,4.03555,2478.0,2477.9,0.21125241]
[1730723668372,4.03571,2477.9,2477.7,0.55]
[1730723668572,4.03571,2477.9,2477.8,0.88802929]